Cogmind - Beta 13 @@@ ROGUE MODE // 2024.05.07 @ 00:11:32 Player: Toa of Guts Result: Destroyed by H-66 Slayer with Heavy Assault Rifle Performance ------------- Evolutions (5) 2500 Regions Visited (6) 1200 Robots Destroyed (44) 220 Value Destroyed (1368) 1368 Prototype IDs (9) 180 Alien Tech Used (0) 0 Bonus (818) 818 TOTAL SCORE: 6286 Bonus ------- Follower Combat Kills 329 Entered DSFs 500 Friendly Fire -11 Cogmind --------- Core Integrity 0/1000 Matter 94/300 Energy 98/100 System Corruption 12% Temperature Cool (0) Movement Core (50) Location -5/Factory Parts ------- > --- POWER (2) -------- (None) > --- PROPULSION (5) --- (None) > --- UTILITY (8) ------ (None) > --- WEAPON (2) ------- (None) > --- INVENTORY (5) ---- Advanced Heat Sink Improved Field Recycling Unit (0) Heavy Laser Battle Rifle Heavy Mace Peak State ------------ > --- POWER ------------ Light Ion Engine Neutrino Core > --- PROPULSION ------- Improved Treads Armored Medium Treads Wheel Wheel Wheel > --- UTILITY ---------- Large Storage Unit High-capacity Battery Enhanced Optical Array Improved Medium Armor Plating Improved Focal Shield Authchip [R/Combat] > --- WEAPON ----------- Heavy Machine Gun KE Penetrator > --- INVENTORY -------- Carbon-fiber Leg Advanced Heat Sink Advanced Heat Sink Advanced Heat Sink Small Matter Pod Authchip [Weapon] Improved Field Recycling Unit Heavy Laser Wave Gun Wave Gun Battle Rifle Smartbomb Launcher Heavy Mace Makeshift Axe [Rating: 56] Favorites ----------- Power Improved Ion Engine Engine Improved Ion Engine Power Core Neutrino Core Propulsion Light Treads Treads Light Treads Leg Improved Aluminum Leg Wheel Wheel Flight Unit Cesium-ion Thruster Utility Large Storage Unit Device Structural Scanner Storage Large Storage Unit Processor Enhanced Optical Array Hackware Authchip [R/Combat] Protection Core Shielding Weapon Small Laser Energy Gun Small Laser Energy Cannon Heavy Phase Cannon Ballistic Gun Battle Rifle Ballistic Cannon Battle Cannon Launcher Rocket Launcher Special Weapon Mining Laser Impact Weapon Hammer Slashing Weapon Makeshift Axe Build | -11 -10 -10 -8 -6 -6 -5 ------- Run | Yrd Mat Sub Rec Fac DSF Fac Slots Evolved 10 | . . . . 8 . 2 Power 1 | . . . . 1 . . Propulsion 3 | . . . . 3 . . Utility 6 | . . . . 4 . 2 Weapon . | . . . . . . . Parts Attached 108 | 6 17 31 2 6 5 41 Power 6 | 1 1 1 . . . 3 Engine 5 | 1 1 1 . . . 2 Core 1 | . . . . . . 1 Reactor . | . . . . . . . Propulsion 28 | 2 4 . 1 4 1 16 Treads 9 | . 4 . 1 . 1 3 Leg 10 | 2 . . . 4 . 4 Wheel 4 | . . . . . . 4 Hover . | . . . . . . . Flight 5 | . . . . . . 5 Utility 32 | 1 2 16 1 2 1 9 Device 17 | . 1 12 . 1 . 3 Storage 4 | 1 1 . . . . 2 Processor 1 | . . . . . . 1 Hackware 1 | . . . . . . 1 Protection 9 | . . 4 1 1 1 2 Artifact . | . . . . . . . Weapon 42 | 2 10 14 . . 3 13 Energy Gun 9 | 1 4 4 . . . . Energy Cannon 2 | . . . . . . 2 Ballistic Gun 13 | 1 3 3 . . . 6 Ballistic Cannon 2 | . . . . . 2 . Launcher 4 | . . 1 . . 1 2 Special Weapon 2 | . 1 1 . . . . Impact Weapon 5 | . 2 3 . . . . Slashing Weapon 5 | . . 2 . . . 3 Piercing Weapon . | . . . . . . . Special Melee Weapon . | . . . . . . . Unidentified Prototypes 1 | . . 1 . . . . Parts Lost 31 | . . 1 . . 1 29 Power 5 | . . 1 . . . 4 Propulsion 13 | . . . . . . 13 Utility 8 | . . . . . 1 7 Weapon 5 | . . . . . . 5 Highest Loss Streak 18 | . . 1 . . 1 18 To Critical Strikes . | . . . . . . . Average Slot Usage (%) 90 | . 99 92 100 63 79 59 Engine 8 | . 14 7 14 6 6 1 Treads 23 | . 25 28 28 9 6 2 Leg 2 | . 2 . . 13 26 6 Device 10 | . 13 10 . 3 6 7 Storage 12 | . 14 14 14 6 6 7 Protection 3 | . . 3 14 9 12 4 Energy Gun 8 | . 15 8 . . . . Ballistic Gun 10 | . 12 11 14 6 6 4 Slashing Weapon 5 | . . 7 14 6 . 3 Naked Turns 10 | . . . . . . 10 Heaviest Build 60 | 14 31 33 33 52 54 60 Greatest Support 52 | 20 40 40 40 52 52 39 Greatest Overweight (x) 5 | 3 . . . . 2 5 Average Overweight (x) . | . . . . . . 2 Largest Inventory Capacity 15 | 8 15 15 15 15 15 15 Average Capacity 14 | 7 14 15 15 15 15 12 Most Carried 15 | 6 15 15 15 15 15 15 Average Carried 13 | 4 13 14 14 11 8 10 Final Capacity 15 | 8 15 15 15 15 15 5 Final Carried 15 | 6 15 15 15 6 15 5 Scrap Engine Consumption 3 | . . . . . 1 2 Class Distribution -------------------- 96% | Mutant 3% | Scavenger-Mutant Dominant Class ---------------- Mutant | -10/Materials Mutant | -10/Subcaves Mutant | -8/Recycling Mutant | -6/Factory Mutant | -6/DSF Mutant | -5/Factory Resources | -11 -10 -10 -8 -6 -6 -5 ----------- Run | Yrd Mat Sub Rec Fac DSF Fac Matter Collected 1566 | 234 347 326 20 . 193 446 Remotely . | . . . . . . . Salvage Created 1479 | . 458 159 . . 194 668 Parts 83 | . 37 9 . . 5 32 Haulers Intercepted 1 | . 1 . . . . . Recyclers Shooed . | . . . . . . . Parts Field Recycled . | . . . . . . . Retrieved Matter . | . . . . . . . Parts Self-Destructed 21 | . . 21 . . . . Prevented . | . . . . . . . Kills | -11 -10 -10 -8 -6 -6 -5 ------- Run | Yrd Mat Sub Rec Fac DSF Fac Combat Hostiles Destroyed 34 | . 12 4 . . 5 13 Melee 3 | . . . . . . 3 Guns 24 | . 10 4 . . 2 8 Cannons 2 | . . . . . 1 1 AOE 5 | . 2 . . . 2 1 Classes Destroyed 10 | . 5 1 . . . 4 Worker 4 | . . . . . . 4 Builder 2 | . 1 . . . . 1 Hauler 1 | . 1 . . . . . Mechanic 1 | . . . . . . 1 Watcher 2 | . 2 . . . . . Swarmer 14 | . 6 . . . 3 5 Grunt 12 | . 6 2 . . 2 2 Sentry 2 | . . . . . . 2 Programmer 4 | . . . . . . 4 Subdweller 2 | . . 2 . . . . Best Kill Streak 8 | . 3 2 . . 3 8 Combat Bots Only 7 | . 3 2 . . 3 7 Max Kills in Single Turn 3 | . 3 1 . . 2 1 Gunslinging 1 | . 1 . . . . . Exploded 2 | . 2 . . . 2 1 Melee 1 | . . . . . . 1 Uniques/NPCs Destroyed . | . . . . . . . Combat | -11 -10 -10 -8 -6 -6 -5 -------- Run | Yrd Mat Sub Rec Fac DSF Fac Hostile Shots Fired 453 | . 37 29 2 . 54 331 Missed 124 | . 6 8 . . 12 98 Damage Taken 5774 | . 367 471 31 . 761 4144 Core 1256 | . 77 138 . . 32 1009 Absorbed by Shields 73 | . . . . . . 73 Redirected to Shielding 52 | . . 4 . . 7 41 Ignored by Resistances 95 | . . . . . . 95 Regen/Repaired (Parts) 100 | . . . . . . 100 Core Remaining (%) 70 | 100 . . 14 . 96 . Volleys Fired 124 | . 52 10 . . 18 44 Largest 2 | . 2 2 . . 2 2 Hottest 115 | . 100 80 . . 64 115 Shots Fired 221 | . 103 18 . . 34 66 Gun 185 | . 102 17 . . 17 49 Cannon 25 | . . . . . 16 9 Launcher 10 | . . 1 . . 1 8 Special 1 | . 1 . . . . . Kinetic 136 | . 51 3 . . 33 49 Thermal 72 | . 49 14 . . . 9 Explosive 10 | . . 1 . . 1 8 Electromagnetic 3 | . 3 . . . . . Robot Hit Streak 13 | . 7 13 . . 9 7 Robot Miss Streak 4 | . 3 1 . . 4 4 Penetration Max . | . . . . . . . Secondary Targets 4 | . 1 . . . . 3 Max Gunslinging Chain 1 | . 1 . . . . 1 Shots Hit Robots 165 | . 67 13 3 . 21 61 Core Hits 80 | . 25 8 . . 10 37 Critical Kills . | . . . . . . . Critical Parts Destroyed 2 | . . . . . 1 1 Critical Strikes 5 | . . . . . 2 3 Destroy 2 | . . . . . 1 1 Blast 1 | . . . . . 1 . Sever 2 | . . . . . . 2 Melee Attacks 80 | . 4 39 3 . . 34 Impact 15 | . 4 11 . . . . Slashing 65 | . . 28 3 . . 34 Piercing . | . . . . . . . Sneak Attacks 6 | . . . 2 . . 4 Combat Hostiles . | . . . . . . . Follow-up Attacks . | . . . . . . . Damage Inflicted 4815 | . 893 161 168 . 604 2989 Guns 1971 | . 792 150 . . 164 865 Cannons 437 | . . . . . 201 236 Explosions 1381 | . 101 11 . . 239 1030 Melee 1026 | . . . 168 . . 858 Ramming . | . . . . . . . Kinetic 1665 | . 417 18 . . 365 865 Thermal 823 | . 455 132 . . . 236 Explosive 1280 | . . 11 . . 239 1030 Electromagnetic 21 | . 21 . . . . . Impact . | . . . . . . . Slashing 1026 | . . . 168 . . 858 Piercing . | . . . . . . . Highest Corruption 12 | . . . . . . 12 Average Corruption 4 | . . . . . . 4 Corruption Purged . | . . . . . . . Corruption Blocked . | . . . . . . . Effects 26 | . . . . . . 26 Message Errors 10 | . . . . . . 10 Matter Fused 6 | . . . . . . 6 Heat Flow Errors 1 | . . . . . . 1 Energy Discharges 2 | . . . . . . 2 Parts Rejected 2 | . . . . . . 2 Misfires 1 | . . . . . . 1 Misdirections 1 | . . . . . . 1 Weapon Failures 3 | . . . . . . 3 Overload Shots . | . . . . . . . Overflow Damage 111 | . 10 . 73 . 9 19 Projectiles 9 | . . . . . 9 . Explosions 10 | . 10 . . . . . Melee 92 | . . . 73 . . 19 Knockbacks 3 | . . . . . 3 . Impact . | . . . . . . . Kinetic 3 | . . . . . 3 . Secondary . | . . . . . . . Self-Inflicted Damage 61 | . 39 15 . . . 7 Shots 3 | . 1 1 . . . 1 Rammed . | . . . . . . . Targets Rammed . | . . . . . . . Kicked . | . . . . . . . Crushed . | . . . . . . . Highest Temperature 575 | . 102 2 . . 575 162 Average Temperature 61 | . 21 2 . . 179 51 Received Heat Transfer 1455 | . 162 96 9 . 315 873 Effects 4 | . . . . . 4 . Shutdowns 1 | . . . . . 1 . Energy Bleed 2 | . . . . . 2 . Short Circuit 1 | . . . . . 1 . Siege Activations . | . . . . . . . Robots Corrupted . | . . . . . . . Combat Hostiles . | . . . . . . . Parts Fried . | . . . . . . . Impact Corruptions . | . . . . . . . Robots Melted . | . . . . . . . Combat Hostiles . | . . . . . . . Parts Melted . | . . . . . . . Heat Transferred 1497 | . 975 300 . . . 222 Parts Sabotaged . | . . . . . . . Parts Stolen . | . . . . . . . Parts Stripped . | . . . . . . . Power Chain Reactions 1 | . 1 . . . . . Alert | -11 -10 -10 -8 -6 -6 -5 ------- Run | Yrd Mat Sub Rec Fac DSF Fac Peak Influence 347 | . 347 . 168 13 201 156 Initial 105 | . . . 83 13 12 105 Average 87 | . 94 . 101 13 114 64 Maximum Alert Level 1 | . 1 . . . 1 . Low Security (%) 94 | 100 89 . 100 100 96 100 Level 1 5 | . 10 . . . 3 . Level 2 . | . . . . . . . Level 3 . | . . . . . . . Level 4 . | . . . . . . . Level 5 . | . . . . . . . High Security . | . . . . . . . Max Security . | . . . . . . . Sterilizations 1 | . . . . . 1 . Squads Dispatched 9 | . 3 . . . 2 4 Investigation 1 | . 1 . . . . . Extermination 1 | . . . . . . 1 Reinforcement 6 | . 2 . . . 2 2 Assault . | . . . . . . . Garrison 1 | . . . . . . 1 Intercept . | . . . . . . . Searches Triggered . | . . . . . . . Construction Impeded . | . . . . . . . Haulers Reinforced . | . . . . . . . Active Scanning Responses . | . . . . . . . Cargo Convoy Interrupts 1 | . . . . . . 1 Stealth | -11 -10 -10 -8 -6 -6 -5 --------- Run | Yrd Mat Sub Rec Fac DSF Fac Distress Signals 4 | . 3 . . . . 1 Communications Jammed . | . . . . . . . Distress Signals . | . . . . . . . Times Spotted 89 | . 24 17 2 . 14 32 Peak Tracking Total 11 | . 4 5 1 . 6 11 Tactical Retreats 4 | . . 1 . . 3 . Traps | -11 -10 -10 -8 -6 -6 -5 ------- Run | Yrd Mat Sub Rec Fac DSF Fac Traps Triggered 5 | . 1 1 . . . 3 Indirectly . | . . . . . . . Trap Hack Attempts . | . . . . . . . Triggered . | . . . . . . . Disarmed . | . . . . . . . Reprogrammed . | . . . . . . . Reused . | . . . . . . . Traps Extracted . | . . . . . . . Installed . | . . . . . . . Triggered . | . . . . . . . Machines | -11 -10 -10 -8 -6 -6 -5 ---------- Run | Yrd Mat Sub Rec Fac DSF Fac Machines Disabled 3 | . 2 . . . . 1 Max in Single Turn 2 | . 2 . . . . 1 Machines Repaired . | . . . . . . . Machines Dismantled . | . . . . . . . Machines Sabotaged . | . . . . . . . Overloaded Fab Kills . | . . . . . . . Hacking | -11 -10 -10 -8 -6 -6 -5 --------- Run | Yrd Mat Sub Rec Fac DSF Fac Machines Accessed 14 | . 5 1 6 1 . 1 Terminals 12 | . 5 . 6 1 . . Fabricators . | . . . . . . . Repair Stations . | . . . . . . . Recycling Units . | . . . . . . . Scanalyzers . | . . . . . . . Garrison Access 1 | . . . . . . 1 Total Hacks 34 | . 12 2 18 1 . 1 Successful 15 | . 5 2 7 1 . . Failed 19 | . 7 . 11 . . 1 Catastrophic 3 | . . . 3 . . . Database Lockouts . | . . . . . . . Manual 3 | . . . 3 . . . Terminals 31 | . 12 . 18 1 . . Fabricators . | . . . . . . . Repair Stations . | . . . . . . . Recycling Units . | . . . . . . . Scanalyzers . | . . . . . . . Garrison Access 1 | . . . . . . 1 Terminal Hacks 15 | . 5 2 7 1 . . Record 2 | . . 2 . . . . Prototype ID Bank 4 | . 2 . 2 . . . Open DSF 1 | . . . . 1 . . Level Access Points 1 | . . . 1 . . . Branch Access Points 1 | . . . 1 . . . Emergency Access Points 1 | . . . 1 . . . Terminal Index 1 | . . . 1 . . . Alert Level 1 | . . . 1 . . . Locate Traps 1 | . 1 . . . . . Zone Layout 2 | . 2 . . . . . Fabricator Hacks . | . . . . . . . Repair Station Hacks . | . . . . . . . Recycling Unit Hacks . | . . . . . . . Scanalyzer . | . . . . . . . Garrison Access Hacks . | . . . . . . . Unauthorized Hacks . | . . . . . . . Terminals . | . . . . . . . Fabricators . | . . . . . . . Repair Stations . | . . . . . . . Recycling Units . | . . . . . . . Scanalyzers . | . . . . . . . Garrison Access . | . . . . . . . Data Cores Recovered . | . . . . . . . Used . | . . . . . . . Hacking Detections 13 | . 5 . 6 1 . 1 Full Trace Events . | . . . . . . . Feedback Events . | . . . . . . . Feedback Blocked . | . . . . . . . Robot Schematics Acquired . | . . . . . . . Robots Built . | . . . . . . . Authchips . | . . . . . . . Time . | . . . . . . . Total Robot Build Rating . | . . . . . . . Part Schematics Acquired . | . . . . . . . Parts Built . | . . . . . . . Authchips . | . . . . . . . Time . | . . . . . . . Total Part Build Rating . | . . . . . . . Parts Repaired . | . . . . . . . Time . | . . . . . . . Parts Recycled . | . . . . . . . Recycled Matter . | . . . . . . . Retrieved Matter . | . . . . . . . Retrieved Components . | . . . . . . . Parts Scanalyzed . | . . . . . . . Part Schematics Acquired . | . . . . . . . Parts Damaged . | . . . . . . . Bothacking | -11 -10 -10 -8 -6 -6 -5 ------------ Run | Yrd Mat Sub Rec Fac DSF Fac Used RIF Installer . | . . . . . . . Robots Hacked . | . . . . . . . Non-combat . | . . . . . . . Combat . | . . . . . . . Robot Hacks Applied . | . . . . . . . Relay Couplers Released . | . . . . . . . Fabnet Peak Effective % . | . . . . . . . Robots Rewired . | . . . . . . . Allies Hacked . | . . . . . . . Hacks Repelled . | . . . . . . . Allies | -11 -10 -10 -8 -6 -6 -5 -------- Run | Yrd Mat Sub Rec Fac DSF Fac Total Allies 13 | . . 13 . . . . Largest Group 11 | . . 11 11 11 11 . Highest-Rated Group 209 | . . 209 209 209 209 . Highest-Rated Ally 19 | . . 19 19 19 19 . Total Orders . | . . . . . . . Ally Attacks 109 | . . 29 7 . 73 . Total Damage 1681 | . . 448 107 . 1126 . Kills 14 | . . 6 3 . 5 . Allies Corrupted . | . . . . . . . Allies Melted . | . . . . . . . Intel | -11 -10 -10 -8 -6 -6 -5 ------- Run | Yrd Mat Sub Rec Fac DSF Fac Robot Analysis Total . | . . . . . . . Derelict Logs Recovered 1 | . . 1 . . . . Drone Launches . | . . . . . . . Drone Recoveries . | . . . . . . . Exploration | -11 -10 -10 -8 -6 -6 -5 ------------- Run | Yrd Mat Sub Rec Fac DSF Fac Turns Passed 7610 | 67 1831 4065 514 13 247 873 Spaces Moved 4135 | 41 919 2357 286 3 101 428 Core 49 | 16 . . . . . 33 Treads 3465 | . 811 2357 286 2 2 7 Legs 275 | 25 108 . . 1 99 42 Wheels 337 | . . . . . . 337 Hover . | . . . . . . . Flight 9 | . . . . . . 9 Fastest Speed 23 | 50 120 160 160 120 120 23 Average Speed 154 | 127 155 160 160 146 165 119 Slowest Speed 330 | 200 160 160 160 160 330 260 Overloaded Moves . | . . . . . . . Propulsion Burnouts . | . . . . . . . Robots Hopped . | . . . . . . . Cave-ins Triggered . | . . . . . . . Exploration Rate (%) 58 | 5 97 97 63 . 72 15 Regions Visited 6 Branch Regions 2 Pre-discovered Areas 1 | . . 1 . . . . Known Exits Taken 2 | . . . 1 1 . . Unknown Exits Taken 3 | 1 1 1 . . . . Scrap Searched 6 | . . 6 . . . . Spaces Dug 28 | . 3 15 . . 5 5 Terrain Destroyed 58 | . 8 15 . . 5 30 Melee 18 | . 2 11 . . . 5 Projectile 5 | . 1 . . . . 4 AOE 35 | . 5 4 . . 5 21 Terrain Rammed . | . . . . . . . Walls Destroyed . | . . . . . . . Machines Disabled . | . . . . . . . Actions | -11 -10 -10 -8 -6 -6 -5 --------- Run | Yrd Mat Sub Rec Fac DSF Fac Total 5022 | 52 1219 2564 341 12 147 687 Wait 448 | . 186 110 47 1 13 91 Move 4129 | 40 918 2356 285 2 100 428 Hop . | . . . . . . . Pick Up 62 | 6 22 8 1 . 9 16 Fast Attach 29 | 6 2 1 . . 1 19 Attach 22 | . . 1 1 5 . 15 Detach 4 | . . . . . . 4 Swap 57 | . 15 29 1 1 4 7 Drop 53 | . 20 10 3 2 1 17 Fire 124 | . 52 10 . . 18 44 Melee 80 | . 4 39 3 . . 34 Ram . | . . . . . . . Kick . | . . . . . . . Crush . | . . . . . . . Escape Stasis 12 | . . . . . . 12 Rewire . | . . . . . . . Trap . | . . . . . . . Miscellaneous 2 | . . . . 1 1 . Route ------- -11/Scrapyard -10/Materials (discovered 6 exits: [*Mat x3] / [*Min x2] / *Sub) -10/Subcaves (discovered 3 exits: [*Mat x2] / *Rec) -8/Recycling -6/Factory -6/DSF -5/Factory (discovered 1 exit: [*Upp]) History --------- Turn | Location | Event 23 | -11/Scrapyard | Discovered new exit (range 16) 68 | -11/Scrapyard | Entered Materials 314 | -10/Materials | Build established: Mutant 501 | -10/Materials | Discovered new exit (range 6) 756 | -10/Materials | Discovered new exit (range 15) 821 | -10/Materials | Discovered new exit (range 12) 1171 | -10/Materials | Discovered new exit (range 15) 1449 | -10/Materials | Discovered new exit (range 3) 1881 | -10/Materials | Discovered new exit (range 13) 1899 | -10/Materials | Entered Subcaves 2424 | -10/Subcaves | Discovered new exit (range 5) 3112 | -10/Subcaves | Visited triangular shrine 3123 | -10/Subcaves | Found Prototype Device 3124 | -10/Subcaves | Identified V3-11A's Pendant 3129 | -10/Subcaves | Befriended Subdweller 3368 | -10/Subcaves | Learned Materials emergency access door positions 3507 | -10/Subcaves | Befriended Subdweller 3517 | -10/Subcaves | Befriended Subdweller 3611 | -10/Subcaves | Visited Clippyterm 3616 | -10/Subcaves | Learned location of Section 7 (-3) 3723 | -10/Subcaves | Shifting Twisted Machinery released Sub. Power Source 3803 | -10/Subcaves | Befriended Subdweller 3948 | -10/Subcaves | Shifting Twisted Machinery released Piercing Trap 4169 | -10/Subcaves | Befriended Subdweller 4171 | -10/Subcaves | A swath of the cavern ceiling suddenly collapsed 4206 | -10/Subcaves | Shifting Twisted Machinery released Battle Rifle 4254 | -10/Subcaves | Discovered new exit (range 10) 4269 | -10/Subcaves | Befriended Subdweller 4270 | -10/Subcaves | Shifting Twisted Machinery released Battle Cannon 4274 | -10/Subcaves | Shifting Twisted Machinery released Piercing Trap 4274 | -10/Subcaves | Befriended Subdweller 4306 | -10/Subcaves | Core integrity fell below 50% 4309 | -10/Subcaves | Befriended Subdweller 4309 | -10/Subcaves | Befriended Subdweller 4399 | -10/Subcaves | Befriended Subdweller 4409 | -10/Subcaves | Befriended Subdweller 4443 | -10/Subcaves | A swath of the cavern ceiling suddenly collapsed 4492 | -10/Subcaves | Shifting Twisted Machinery released Flamer 5267 | -10/Subcaves | Befriended Subdweller 5521 | -10/Subcaves | Discovered new exit (range 12) 5635 | -10/Subcaves | Core integrity fell below 20% 5637 | -10/Subcaves | Befriended Subdweller 5964 | -10/Subcaves | Entered Recycling 5964 | -8/Recycling | Accompanied by 11 allies 5966 | -8/Recycling | Found Scrap Engine 6165 | -8/Recycling | Identified exit to Factory 6478 | -8/Recycling | Entered Factory 6478 | -6/Factory | Accompanied by 11 allies 6478 | -6/Factory | Evolved 8 slots: Power x1, Propulsion x3, Utility x4 6491 | -6/Factory | Identified exit to DSF 6491 | -6/Factory | Entered DSF 6491 | -6/DSF | Accompanied by 11 allies 6516 | -6/DSF | Additional patrols routed to DSF 6532 | -6/DSF | Discovered new exit (range 15) 6585 | -6/DSF | Lost 10 allies 6639 | -6/DSF | Sterilization system engaged 6659 | -6/DSF | Ambient heat levels rising (+10) 6674 | -6/DSF | Ambient heat levels rising (+10) 6689 | -6/DSF | Ambient heat levels rising (+10) 6704 | -6/DSF | Ambient heat levels rising (+10) 6719 | -6/DSF | Ambient heat levels rising (+10) 6734 | -6/DSF | Ambient heat levels rising (+10) 6738 | -6/DSF | Entered Factory 6738 | -5/Factory | Evolved 2 slots: Utility x2 6774 | -5/Factory | Garrison activated, responded to threat 6947 | -5/Factory | Lost 18 parts (2p8n4u4w) 7579 | -5/Factory | System corruption reached 10% 7594 | -5/Factory | Cargo convoy interrupted 7601 | -5/Factory | Released all parts (3) 7602 | -5/Factory | Core integrity fell below 50% 7609 | -5/Factory | Core integrity fell below 20% 7610 | -5/Factory | Discovered new exit (range 13) 7611 | -5/Factory | Destroyed by H-66 Slayer with Heavy Assault Rifle Last Messages --------------- 07603_ Slug penetrates Manufacturing Mainframe. 07603_ Slug penetrates Fabricator. 07603_ Slug penetrates Earth. 07603_ Field strength at 75. 07604_ Field strength at 31. 07605_ Penetrated by Slug. 07605_ Field strength at 12. 07605_ R-10 Processor collects Authchip [Weapon]. 07606_ Field strength at 6. 07606_ Penetrated by Slug. 07606_ Stasis field depleted. 07607_ Slug penetrates P-70 Sage. 07607_ Penetrated by Slug. 07607_ K-01 Serf cleans the Power Conduit. 07608_ Slug penetrates Wall. 07608_ R-10 Processor collects Carbon-fiber Leg. 07610_ Penetrated by Slug. 07610_ EXIT=FOUND 07611_ Slug penetrates Wall. 07611_ R-10 Processor collects Mic. Fission Core. Map ----- +----------------------------------------------------+ | ????# ] # ""S # #???? """" ? | | ????# # "" # #?????? ??? | | ????# # ###+########??????#+##+## | | ????# ! # #?# #?????######### | | ????############+#####+##### ####### # | | ????????????# + # | | ????????????# ############# + | | ????????????# #????????#### # #### | | ?????????# #????????# ## # #??? | | ?????????# ####?????#"########## #??? | | ?????????# ## ?????# #### #??? | | ?????????# ?